[Event "27th Sharjah International Rapid Chess-c"]
[Site "Sharjah"]
[Date "2022.04.07"]
[Round "5.34"]
[White "Sriram Venkatesan"]
[Black "Rafee, Mohd Hayel"]
[Result "0-1"]
[ECO "A43"]
[WhiteElo "1108"]
[BlackElo "1941"]
[Annotator "TA"]
[PlyCount "70"]
[EventDate "2022.04.07"]
[EventType "rapid"]
[EventCountry "UAE"]
[SourceTitle "playchess.com"]
[Source "ChessBase"]
[SourceQuality "1"]
[TimeControl "600+3"]

{[%evp 9,70,-76,-77,-88,-42,-57,-66,-41,-66,-63,0,-45,-50,-70,-63,-60,-23,-56,-23,-50,-47,-95,-47,-43,-38,-82,-27,-36,-12,-70,-70,-90,-20,-20,0,-54,-48,-53,-32,-31,-45,-80,-33,-50,-45,-45,-30,-45,-18,-12,0,-44,-39,-442,-422,-1548,-1508,-1418,-1307,-29989,-29990,-29991,-29992]} 1. d4 {[%emt 0:00:03]} c5 {[%emt 0:00:01]} 2. Bf4 {[%emt 0:00:03]} cxd4 {[%emt 0:00:05]} 3. Qxd4 {[%emt 0:00:05]} Nc6 {[%emt 0:00:02]} 4. Qd1 {[%emt 0:00:06]} e5 {[%emt 0:00:03]} 5. Bg3 {[%emt 0:00:08]} Nf6 {[%emt 0:00:03]} 6. e3 {[%emt 0:00:10] A43: Schmid Benoni.} d5 {[%emt 0:00:02] [#]} (6... Qb6 $17 {aiming for ...h5.} 7. Qc1 h5) 7. Bb5 $146 {[%emt 0:00:09]} ({Predecessor:} 7. h3 Bd6 8. Nd2 Be6 9. Bb5 O-O 10. Bxc6 bxc6 11. Ngf3 Qb8 12. b3 Nd7 13. O-O {0-1 (29) Meth,A-Axt,C freechess.de 2019}) 7... Bb4+ {[%emt 0:00:18]} 8. c3 {[%emt 0:00:15] Black is slightly better.} Bd6 {[%emt 0:00:01]} 9. Nf3 {[%emt 0:00:15]} Qe7 {[%emt 0:00:10]} (9... Bg4 $15 10. Be2 O-O) 10. Nbd2 {[%emt 0:00:45]} O-O {[%emt 0:00:04]} 11. O-O {[%emt 0:00:24]} a6 {[%emt 0:00:03]} 12. Ba4 {[%emt 0:00:13]} b5 {[%emt 0:00:03]} (12... e4 {feels hotter.} 13. Nd4 Bxg3 14. fxg3 Ng4) 13. Bb3 {[%emt 0:00:02]} Na5 {[%emt 0:00:06]} 14. h3 {[%emt 0:00:21]} Nxb3 {[%emt 0:00:09]} 15. Nxb3 {[%emt 0:00:02]} (15. axb3 $15 Ne4 16. Nxe4 dxe4 17. Bh4) 15... Bf5 {[%emt 0:00:17]} (15... h6 $17) 16. Bh4 $15 {[%emt 0:00:31]} Rfd8 {[%emt 0:00:55]} 17. Qe2 {[%emt 0:00:42] [#]} ({Reject} 17. Bxf6 Qxf6 18. Qe2 (18. Qxd5 $2 e4 $19) 18... Rac8 $17) 17... Bg6 {[%emt 0:00:05]} ({Black should play} 17... h6 $1 $17) 18. Nh2 {[%emt 0:01:32]} Qe6 {[%emt 0:01:21]} 19. Rfe1 {[%emt 0:00:45]} (19. Ng4 $11) 19... Rd7 {[%emt 0:00:06] &Nero is more active.} 20. Rad1 {[%emt 0:00:29] [#]} Bh5 {[%emt 0:00:09]} (20... Ne4 $1 $17 21. f3 Nc5) 21. f3 $11 {[%emt 0:00:06]} Be7 {[%emt 0:00:37]} 22. Bxf6 {[%emt 0:00:20]} ({Better is} 22. g4 $11 Bg6 23. f4) 22... Qxf6 $15 {[%emt 0:00:02]} 23. e4 {[%emt 0:00:14]} d4 {[%emt 0:00:10]} 24. cxd4 {[%emt 0:00:39]} exd4 {[%emt 0:00:02]} 25. Ng4 {[%emt 0:00:38]} Qb6 {[%emt 0:01:43]} (25... Bxg4 $17 26. fxg4 Qe5) 26. Kh1 {[%emt 0:00:43][%cal Og4e3]} Bxg4 {[%emt 0:00:14]} 27. fxg4 {[%emt 0:00:06]} a5 {[%emt 0:00:01][%cal Ba6a5,Ba5a4][%mdl 32]} 28. Qf3 {[%emt 0:00:32]} a4 {[%emt 0:00:13]} 29. Nc1 {[%emt 0:00:24]} Rc8 {[%emt 0:00:35][%cal Ba8c8,Bc8c1,Bc1c2][%mdl 32]} 30. Re2 {[%emt 0:00:21]} Qe6 {[%emt 0:00:19][%cal Od4d3]} 31. Red2 {[%emt 0:00:13][%mdl 8192] Now White is beyond hope.} (31. Qf5 $15) 31... Bg5 $19 {[%emt 0:00:31]} 32. Rxd4 {[%emt 0:00:14]} (32. Nd3 $142 Bxd2 33. Rxd2) 32... Rxd4 {[%emt 0:00:05]} 33. Rxd4 {[%emt 0:00:05]} Rxc1+ {[%emt 0:00:07]} 34. Kh2 {[%emt 0:00:02]} Qe5+ {[%emt 0:00:04]} 35. g3 {[%emt 0:00:06]} Rc2+ {[%emt 0:00:11] Weighted Error Value: White=0.79/Black=0.21 (precise)} 0-1